{"text_format":"2","workbook":"xlsx","n_sheets":1,"sheets":["Tabelle1"],"not_rendered":{"charts":0,"images":0,"macros":0,"external_links":0,"defined_names":1,"comments":0,"pivot_tables":0},"unopened":[],"bounds":{"document_bytes":16777216,"sheet_cells":100000,"run_cost":"one","rows_first":2000,"rows_last":500,"rows_between":2000,"halvings":0,"cell_chars":16384,"cell_head_chars":4096},"cells_cut":0,"cells_raw":0,"read":"whole","date_system":"1900"}

{"sheet":"Tabelle1","index":0,"n_rows":61,"n_cols":20,"rows_kept":61,"cut":false,"hidden":false,"merged":[[60,0,60,20],[0,0,0,20],[4,4,4,16],[55,1,55,16],[56,1,56,16],[2,1,2,16],[53,10,53,13],[57,1,57,16]]}
["Preise für Ausnahmetransporte und Sondertransporte in der Schweiz"]
[]
[null,"Für eine Berechnung der voraussichtlichen Begleitkosten füllen Sie bitte die weissen Felder aus:"]
[]
[null,"Transportname / Titel:"]
[]
[null,"A)  Dimensionen",null,null,"Bitte auf jeder Zeile 1 Feld ankreuzen!        (ATB = Schweizer Ausnahmetransportbegleiter)",{"$nulls":14},"Punkte"]
[]
[{"$nulls":4}," Kein ATB",null,null," Klein",null,null," Standart",null,null," Mittel",null,null," Gross"]
[null,{"$f":"IF(F10+I10+L10+O10+R10,TRUE*1,\"bitte auswählen →\")","v":"bitte auswählen →"},null,"Länge",null,false,{"$f":"IF(F10,TRUE*1,2)","v":2},null,false,{"$f":"IF(I10,TRUE*3,0)","v":0},null,false,{"$f":"IF(L10,TRUE*4,0)","v":0},null,false,{"$f":"IF(O10,TRUE*7,0)","v":0},null,false,{"$f":"IF(R10,TRUE*8,0)","v":0},{"$f":"G10+P10+M10+J10+S10","v":2}]
[null,{"$f":"IF(F11+I11+L11+O11+R11,TRUE*1,\"bitte auswählen →\")","v":"bitte auswählen →"},null,"Breite",null,false,{"$f":"IF(F11,TRUE*1,2)","v":2},null,false,{"$f":"IF(I11,TRUE*2,0)","v":0},null,false,{"$f":"IF(L11,TRUE*6,0)","v":0},null,false,{"$f":"IF(O11,TRUE*7,0)","v":0},null,false,{"$f":"IF(R11,TRUE*8,0)","v":0},{"$f":"G11+P11+M11+J11+S11","v":2}]
[null,{"$f":"IF(F12+I12+L12+O12+R12,TRUE*1,\"bitte auswählen →\")","v":"bitte auswählen →"},null,"Höhe",null,false,{"$f":"IF(F12,TRUE*0,2)","v":2},null,false,{"$f":"IF(I12,TRUE*1,0)","v":0},null,false,{"$f":"IF(L12,TRUE*3,0)","v":0},null,false,{"$f":"IF(O12,TRUE*8,0)","v":0},null,false,{"$f":"IF(R12,TRUE*9,0)","v":0},2]
[null,{"$f":"IF(F13+I13+L13+O13+R13,TRUE*1,\"bitte auswählen →\")","v":"bitte auswählen →"},null,"Gewicht",null,false,{"$f":"IF(F13,TRUE*0,1)","v":1},null,false,{"$f":"IF(I13,TRUE*2,0)","v":0},null,false,{"$f":"IF(L13,TRUE*3,0)","v":0},null,false,{"$f":"IF(O13,TRUE*5,0)","v":0},null,false,{"$f":"IF(R13,TRUE*9,0)","v":0},1]
[null,{"$f":"IF(F14+I14+L14+O14+R14,TRUE*1,\"bitte auswählen →\")","v":1},null,null,{"$f":"SUM(G10:G13)","v":7},0,{"$f":"E14*F14","v":0},{"$f":"SUM(J10:J13)","v":0},1,{"$f":"H14*I14","v":0},{"$f":"SUM(M10:M13)","v":0},2,{"$f":"K14*L14","v":0},{"$f":"SUM(P10:P13)","v":0},3,{"$f":"N14*O14","v":0},{"$f":"SUM(S10:S13)","v":0},4,{"$f":"Q14*R14","v":0},{"$f":"SUM(T10:T13)","v":7}]
[]
[null,"Total Punkte Dimension:",null,null,{"$f":"(S11+S10)/6+R16","v":1.1666666666666667},"nicht benötigt >",{"$f":"IF(R16>8,9,IF(R16>7,8,IF(R16>6,6,IF(R16>5,5.5,IF(R16>4,5,IF(R16>3,4.5,IF(R16>2,4,IF(R16>1,3.5,3))))))))","v":3.5},{"$nulls":10},{"$f":"(T10+T11+T12+T13+T1)/6","v":1.1666666666666667}," = Total Punkte : 6"]
[]
[null,"0 - 1 Punkte"," =","Voraussichtlich nur Eigenbegleitung mit Ortskenntnissen notwendig"]
[null,"1 - 3 Punkte"," =","Klein    (Ausnahmetransportbegleitung in der Regel mit 1 Fahrzeug und 1 ATB-Spezialist)"]
[null,"3 - 5 Punkte"," =","Mittel  (Ausnahmetransportbegleitung in der Regel mit 2 Fahrzeugen und 2 Begleitern)"]
[null,"5 - 9 Punkte"," =","Gross   (Es werden mehrere ATB-Begleitfahrzeuge und Begleitpersonen notwendig sein)",{"$nulls":13},"Faktor","Wert"]
[]
[null,"B)  Besonderheiten"]
[]
[null,"        Reine Autobahnfahrt (Der Transport ist weniger als 4.35 m hoch und muss die Autobahn nicht verlassen)",{"$nulls":12},false,{"$f":"IF(O25,TRUE*1,0)","v":0},null,1.4,{"$f":"P25*R25","v":0}]
[null,"        Zusätzliches Begleitpersonal in Bewilligung (Ziff. 81) vorgeschrieben",{"$nulls":12},false,0,null,1.4,0]
[null,"        Zusätzliches Begleitfahrzeug in Bewilligung vorgeschrieben (zwingend bei Konvoifahrten)",{"$nulls":9},false,{"$f":"IF(L27,TRUE*1,0)","v":0},null,{"$f":"IF(Q38>1,1,0)","v":0},{"$f":"M27+O27","v":0},null,3,{"$f":"IF(P27>0,1,0)","v":0}]
[null,"        Dolmetscher notwendig (= zwingend wenn der Fahrer nicht fliessend deutsch spricht)",{"$nulls":12},false,{"$f":"IF(O28,TRUE*1,0)","v":0},null,1.2,{"$f":"P28*R28","v":0}]
[null,"        Der Transport führt durch den Gotthard-Strassentunnel (spezielle Auflagen)",{"$nulls":12},false,0,null,1.3,0]
[null,"        Der Transport durchquert einen der folgenden Kantone: Fribourg, Vaudoise, Neuchâtel, Jura, Genève, Vallais, Ticino",{"$nulls":12},false,0,null,2,0]
[{"$nulls":17},{"$f":"S31/4","v":0},{"$f":"SUM(S26:S30)","v":0}]
[null,"C)  Kilometer",{"$nulls":12},{"$f":"R16+R31","v":1.1666666666666667},"Faktor",{"$f":"R32","v":280},{"$f":"Q34*2.8","v":280},"Km effektiv (x 2.80)"]
[]
[null,"Anzahl Kilometer von der Schweizer Grenze oder dem Start-Ort bis zum Ziel (1 Hinfahrt):",{"$nulls":11},{"$f":"IF(Q34<10*1,\"Km eintragen →\")","v":false},{"$f":"O32*R35","v":816.66666666666674},"End-Km x Faktor",100,2.5,"Ansatz Fr. / Km"]
[{"$nulls":14},{"$f":"IF(P25>0,O34*0.6,O34)","v":816.66666666666674}," - Autobahnfahrt",null,{"$f":"R32*R34","v":700},"Endkosten"]
[null,"D)  Anzahl Fahrzeuge"]
[]
[null,"Anzahl Fahrzeuge welche zeitgleich auf derselben Strecke fahren (Konvoi-Fahrt):",{"$nulls":12},"ab 2 = Automatisch zusätzliches Begleit-Fz.",null,1]
[]
[null,"E)  Voraussichtliche Kosten"]
[]
[null,"        Bewilligung durch ATB Trasec AG einholen:",{"$nulls":7},false,null,{"$f":"IF(J42,TRUE*1,0)","v":0},{"$f":"IF(Q34>86,250,150)","v":250},null,null,null,{"$f":"(L42*M42)*Q38","v":0}]
[null,"Begleitkosten, Fahrzeug und Personal:",{"$nulls":7},{"$f":"M27*Q34*1.2*2","v":0},{"$nulls":4},{"$f":"IF(O35<230,230,O35)","v":816.66666666666674},"Mindestpreis",{"$f":"ROUND(O43,0)","v":817}]
[null,"Rabatt / Skonto",0,"%","(VATB-Mitglieder: 10% Rabatt, Neukunden: 20% Rabatt)",{"$nulls":6},{"$f":"(Q43+Q42)","v":817},{"$f":"(L44/100)*C44","v":0},null,null,null,{"$f":"ROUND(M44,0)","v":0}]
[null,"Total in Schweizer Franken, inkl. 7.7% MwSt:",{"$nulls":9},{"$f":"(Q42+Q43)-Q44","v":817},{"$f":"L45*1.077","v":879.90899999999999},null,null,"plus MwSt >",{"$f":"ROUND(M45,0)","v":880}]
[]
[null,"F)  Euro-Umrechnung (ohne MwSt)"]
[]
[null,"Total in Euro",null,"Kursdatum",null,103.75,103.75,"Kurs 100.- CHF =",103.75,103.75,100,null,{"$f":"L45*(K49/100)","v":817},null,null,null,{"$f":"ROUND(M49,0)","v":817}]
[{"$nulls":11},"Zuschlag Faktor",{"$f":"IF(R16>6.5,2000,IF(R16>5.5,1600,IF(R16>4.5,1400,IF(R16>3.5,1200,IF(R16>2.5,1000,IF(R16>1.8,600,IF(R16>1,400,IF(R16>0.5,200,100))))))))","v":400}]
[null,"Bewilligungsgebühren der Kantone und des ASTRA: (ohne MwSt)",{"$nulls":9},"Zuschlag Km",{"$f":"IF(Q34>450,800,IF(Q34>400,700,IF(Q34>350,600,IF(Q34>300,500,IF(Q34>250,400,IF(Q34>150,300,IF(Q34>100,200,IF(Q34>50,100,500))))))))","v":100},null,null,{"$f":"M50+M51","v":500},{"$f":"P51*Q38","v":500}]
[null,"Bewilligungskosten in Euro:",{"$nulls":9},"Umrechnung Euro",{"$f":"Q51*(K49/100)","v":500},null,null,null,{"$f":"ROUND(M52,0)","v":500}]
[]
[null,"Vorgeschriebene Fahrzeit für diesen Transport:",{"$nulls":8},{"$f":"IF(P54>9,+(\"Nachtfahrt, 22:00 - 05:00 Uhr\"),\"Tagfahrt, 05:00 - 22:00 Uhr\")","v":"Tagfahrt, 05:00 - 22:00 Uhr"},null,null,null,{"$f":"P29*6","v":0},{"$f":"O54+T11","v":2}]
[]
[null,"Wichtig:  Die hier aufgeführten Preise entsprechen unseren Erfahrungswerten der letzten Jahre."]
[null,"Die Preise dienen nur zur Orientierung und sind nicht verbindlich! Wir verweisen auf unsere aktuellen AGB."]
[null,"Eine konkrete Preisangabe können wir erst machen, wenn die Sonderbewilligung mit der definitiven Fahrstrecke vorliegt."]
[]
[]
["ATB Trasec AG, 4665 Oftringen,   0041 (0)62 798 08 00,   info@trasec.ch,   www.trasec.ch"]